fUSD/lending_fUSD_20260601
["ID","MTS","AMOUNT","RATE_DAILY","PERIOD"]
[423578634,1780248643000,-1601.751083,0.00028687,7]
[423578638,1780248643000,-1601.751083,0.00028687,7]
[423578645,1780248643000,-187.238477,0.00028687,7]
[423578651,1780248643000,-150.0,0.00028687,2]
[423578643,1780248643000,-151.0,0.00028687,7]
[423578630,1780248643000,-1836.785998,0.00028687,7]
[423578641,1780248643000,-151.0,0.00028687,7]
[423578624,1780248643000,-151.0,0.00028687,7]
[423578626,1780248643000,-1836.785998,0.00028687,7]
[423578612,1780248643000,-1334.460671,0.00028687,7]
[423578621,1780248643000,-1836.785998,0.00028687,7]
[423578614,1780248643000,-151.0,0.00028687,7]
[423578622,1780248643000,-1334.460671,0.00028687,7]
[423578632,1780248643000,-1601.751083,0.00028687,7]
[423578850,1780248644000,-5578.7,0.000287,14]
[423578854,1780248644000,-1000.0,0.00028723,7]
[423578848,1780248644000,-234.76,0.00028693,30]
[423578858,1780248644000,-234.76,0.00028725,2]
[423578856,1780248644000,-235.7,0.00028725,2]
[423578844,1780248644000,-28756.07756384,0.00028687,2]
[423578836,1780248644000,-434.0,0.00020951,7]
[423578838,1780248644000,-6744.51443062,0.0002595,2]
[423578842,1780248644000,-187.238477,0.00028687,7]
[423578840,1780248644000,-2319.0,0.0002853,3]
[423578860,1780248644000,-658.0,0.00028739,3]
[423578845,1780248644000,-235.7,0.00028693,30]
[423578864,1780248644000,-234.76,0.00028756,7]
[423578876,1780248644000,-2072.47,0.00028797,7]
[423578852,1780248644000,-540.48,0.000287,7]
[423578882,1780248644000,-1205.4,0.00028797,7]
[423578878,1780248644000,-955.17,0.00028797,7]
[423578899,1780248644000,-350.8487,0.0002881,2]
[423578880,1780248644000,-1157.84,0.00028797,7]
[423578886,1780248644000,-153.80363737,0.00028809,2]
[423578862,1780248644000,-235.7,0.00028756,7]
[423578872,1780248644000,-783.47,0.00028797,7]
[423578874,1780248644000,-503.0,0.00028797,7]
[423578870,1780248644000,-234.76,0.00028788,30]
[423578868,1780248644000,-235.7,0.00028788,30]
[423578866,1780248644000,-8156.78,0.00028778,7]
[423578884,1780248644000,-618.9267717,0.000288,2]
[423578905,1780248645000,-235.7,0.0002882,2]
[423578907,1780248645000,-234.76,0.0002882,2]
[423578909,1780248645000,-1590.0,0.00028847,3]
[423578911,1780248645000,-164.0,0.00028847,3]
[423578903,1780248645000,-350.8487,0.0002881,2]
[423578913,1780248645000,-1000.0,0.00028849,3]
[423578918,1780248645000,-546.06150329,0.0002885,3]
[423578929,1780248645000,-234.76,0.00028883,30]
[423578901,1780248645000,-350.8487,0.0002881,2]
[423578933,1780248645000,-500.0,0.00028893,7]
[423578931,1780248645000,-299.9,0.00028893,30]
[423578993,1780248645000,-446.86434816,0.0002595,2]
[423578990,1780248645000,-2129.9104,0.0002595,2]
[423578937,1780248645000,-3042.46038831,0.00028894,2]
[423578922,1780248645000,-235.7,0.00028852,7]
[423578916,1780248645000,-1772.93849671,0.0002885,3]
[423578925,1780248645000,-234.76,0.00028852,7]
[423578920,1780248645000,-1590.0,0.0002885,3]
[423578935,1780248645000,-300.0,0.00028893,10]
[423578927,1780248645000,-235.7,0.00028883,30]
[423580482,1780248659000,-1355.33641941,0.0002595,2]
[423580483,1780248659000,-191.05506048,0.00026437,2]
[423580485,1780248659000,-1303.77,0.00028535,2]
[423580484,1780248659000,-2319.0,0.0002853,3]
[423580486,1780248659000,-943.72,0.0002863,30]
[423580488,1780248659000,-2223.55,0.0002863,30]
[423580489,1780248659000,-2036.54,0.00028637,2]
[423580490,1780248659000,-187.238477,0.00028687,7]
[423580491,1780248659000,-943.72,0.00028797,7]
[423580493,1780248659000,-2223.55,0.00028797,7]
[423580492,1780248659000,-1156.82,0.00028797,7]
[423580494,1780248659000,-281.0,0.00028797,10]
[423580496,1780248659000,-29397.34040829,0.00028894,2]
[423580487,1780248659000,-1156.82,0.0002863,30]
[423580495,1780248659000,-52954.36403207,0.00028894,2]
[423580497,1780248713000,-10000.0,0.00011037,2]
[423580499,1780248714000,-10000.0,0.00011037,2]
[423580498,1780248714000,-10000.0,0.00011037,2]
[423580500,1780248721000,-7645.0,0.00011037,2]
[423580501,1780248761000,1000.0,0.0003013,120]
[423580502,1780248763000,478.39,0.00026923,120]
[423580503,1780248764000,478.39,0.00029616,120]
[423580505,1780248773000,844.85,0.00028291,120]
[423580504,1780248773000,844.85,0.00027773,120]
[423580507,1780248774000,844.85,0.00028686,120]
[423580506,1780248774000,844.85,0.00028686,120]
[423580510,1780248775000,844.85,0.00028686,120]
[423580509,1780248775000,844.85,0.00028686,120]
[423580508,1780248775000,844.85,0.00028686,120]
[423580511,1780248776000,844.98194202,0.00028686,120]
[423580513,1780248833000,1000.0,0.0003013,120]
[423580514,1780248846000,500.0,0.0003013,120]
[423580515,1780248902000,1658.27148915,0.0003013,120]
[423580516,1780248911000,4004.071143,0.000245,120]
[423580519,1780248968000,500.0,0.00028291,120]
[423580518,1780248968000,500.0,0.00027773,120]
[423580522,1780248969000,500.0,0.00028686,120]
[423580521,1780248969000,500.0,0.00028686,120]
[423580520,1780248969000,500.0,0.00028686,120]
[423580523,1780248970000,438.71161067,0.00028686,120]
[423580529,1780249120000,1000.0,0.0003013,120]
[423580530,1780249123000,207.11,0.00030082,120]
[423580531,1780249141000,1000.0,0.0003013,120]
[423580532,1780249179000,177.96,8.016e-05,2]
[423580533,1780249198000,500.0,0.0003013,120]
[423580535,1780249357000,835.791906,0.00030136,120]
[423580536,1780249362000,2000.0,9.972e-05,2]
[423580537,1780249396000,10001.63,9.958e-05,2]
[423580552,1780249426000,-155.472,0.00010837,2]
[423580551,1780249426000,-2382.039,0.00010837,2]
[423580550,1780249426000,-476.58194004,0.00010837,2]
[423580549,1780249426000,-509.31855336,0.00010837,2]
[423580548,1780249426000,-150.0,0.00010836,2]
[423580546,1780249426000,-700.0,0.000107,3]
[423580547,1780249426000,-900.0,0.000108,3]
[423580542,1780249426000,-2289.84,0.00010093,2]
[423580544,1780249426000,-200.0,0.000105,3]
[423580553,1780249426000,-25071.1763,0.00010837,2]
[423580543,1780249426000,-150.0,0.00010119,2]
[423580541,1780249426000,-178.24,0.00010093,2]
[423580540,1780249426000,-1229.78214246,0.00010056,2]
[423580539,1780249426000,-2997.17,0.00010056,2]
[423580538,1780249426000,-500.0,0.0001001,2]
[423580545,1780249426000,-400.0,0.000106,3]
[423580554,1780249426000,-2500.0,0.00010837,2]
[423580569,1780249426000,-500.0,0.00010886,2]
[423580556,1780249426000,-1033.74446575,0.00010859,2]
[423580555,1780249426000,-395.16582728,0.00010859,2]
[423580573,1780249426000,-500.0,0.00010886,2]
[423580572,1780249426000,-500.0,0.00010886,2]
[423580571,1780249426000,-500.0,0.00010886,2]
[423580570,1780249426000,-500.0,0.00010886,2]
[423580568,1780249426000,-500.0,0.00010886,2]
[423580566,1780249426000,-500.0,0.00010886,2]
[423580565,1780249426000,-500.0,0.00010886,2]
[423580567,1780249426000,-500.0,0.00010886,2]
[423580563,1780249426000,-620.0,0.00010886,2]
[423580561,1780249426000,-500.0,0.00010886,2]
[423580562,1780249426000,-500.0,0.00010886,2]
[423580560,1780249426000,-500.0,0.00010886,2]
[423580557,1780249426000,-4496.34295375,0.00010859,2]
[423580559,1780249426000,-500.0,0.00010886,2]
[423580558,1780249426000,-500.0,0.00010886,2]
[423580564,1780249426000,-500.0,0.00010886,2]
[423580579,1780249427000,-500.0,0.00010886,2]
[423580575,1780249427000,-500.0,0.00010886,2]
[423580574,1780249427000,-500.0,0.00010886,2]
[423580576,1780249427000,-500.0,0.00010886,2]
[423580577,1780249427000,-500.0,0.00010886,2]
[423580580,1780249427000,-500.0,0.00010886,2]
[423580578,1780249427000,-162.25942896,0.00010886,2]
[423580581,1780249427000,-500.0,0.00010886,2]
[423580583,1780249427000,-2015.13,0.00010887,2]
[423580582,1780249427000,-3022.69,0.00010887,2]
[423580584,1780249427000,-4030.26,0.00010887,2]
[423580587,1780249427000,-124.9773884,0.000109,2]
[423580586,1780249427000,-1200.0,0.000109,3]
[423580585,1780249427000,-1109.81,0.00010899,2]
[423580588,1780249545000,500.0,0.0003013,120]
[423580589,1780249595000,-251.15013299,0.00010794,2]
[423580590,1780249625000,-517.6,0.00010144,2]
[423580592,1780249625000,-150.0,0.00010826,2]
[423580591,1780249625000,-364.98986701,0.00010794,2]
[423580594,1780249625000,-500.0,0.00010826,2]
[423580595,1780249625000,-500.0,0.00010826,2]
[423580593,1780249625000,-500.0,0.00010826,2]
[423580609,1780249626000,-500.0,0.00010826,2]
[423580608,1780249626000,-500.0,0.00010826,2]
[423580607,1780249626000,-500.0,0.00010826,2]
[423580606,1780249626000,-500.0,0.00010826,2]
[423580605,1780249626000,-500.0,0.00010826,2]
[423580604,1780249626000,-500.0,0.00010826,2]
[423580597,1780249626000,-500.0,0.00010826,2]
[423580603,1780249626000,-500.0,0.00010826,2]
[423580602,1780249626000,-500.0,0.00010826,2]
[423580600,1780249626000,-500.0,0.00010826,2]
[423580599,1780249626000,-500.0,0.00010826,2]
[423580598,1780249626000,-500.0,0.00010826,2]
[423580596,1780249626000,-500.0,0.00010826,2]
[423580610,1780249626000,-500.0,0.00010826,2]
[423580601,1780249626000,-500.0,0.00010826,2]
[423580611,1780249626000,-500.0,0.00010826,2]
[423580620,1780249626000,-500.0,0.00010826,2]
[423580613,1780249626000,-500.0,0.00010826,2]
[423580612,1780249626000,-500.0,0.00010826,2]
[423580629,1780249626000,-500.0,0.00010826,2]
[423580628,1780249626000,-500.0,0.00010826,2]
[423580627,1780249626000,-500.0,0.00010826,2]
[423580625,1780249626000,-500.0,0.00010826,2]
[423580624,1780249626000,-500.0,0.00010826,2]
[423580623,1780249626000,-500.0,0.00010826,2]
[423580626,1780249626000,-500.0,0.00010826,2]
[423580621,1780249626000,-500.0,0.00010826,2]
[423580619,1780249626000,-500.0,0.00010826,2]
[423580618,1780249626000,-500.0,0.00010826,2]
[423580617,1780249626000,-500.0,0.00010826,2]
[423580616,1780249626000,-500.0,0.00010826,2]
[423580615,1780249626000,-500.0,0.00010826,2]
[423580622,1780249626000,-500.0,0.00010826,2]
[423580614,1780249626000,-500.0,0.00010826,2]
[423580636,1780249627000,-500.0,0.00010826,2]
[423580633,1780249627000,-500.0,0.00010826,2]
[423580638,1780249627000,-500.0,0.00010826,2]
[423580635,1780249627000,-500.0,0.00010826,2]
[423580630,1780249627000,-500.0,0.00010826,2]
[423580634,1780249627000,-500.0,0.00010826,2]
[423580631,1780249627000,-500.0,0.00010826,2]
[423580637,1780249627000,-500.0,0.00010826,2]
[423580632,1780249627000,-500.0,0.00010826,2]
[423580641,1780249627000,-500.0,0.00010826,2]
[423580647,1780249627000,-500.0,0.00010826,2]
[423580639,1780249627000,-500.0,0.00010826,2]
[423580642,1780249627000,-500.0,0.00010826,2]
[423580644,1780249627000,-500.0,0.00010826,2]
[423580643,1780249627000,-500.0,0.00010826,2]
[423580645,1780249627000,-500.0,0.00010826,2]
[423580646,1780249627000,-500.0,0.00010826,2]
[423580648,1780249627000,-500.0,0.00010826,2]
[423580650,1780249627000,-467.41013299,0.00010826,2]
[423580649,1780249627000,-500.0,0.00010826,2]
[423580640,1780249627000,-500.0,0.00010826,2]
[423580654,1780249668000,-1202.95045979,0.00010027,2]
[423580653,1780249668000,-1797.04954021,0.00010026,2]
[423580655,1780249700000,-713.71601645,0.00010027,2]
[423580656,1780249700000,-243.25012796,0.00010047,2]
[423580657,1780249700000,-1043.03385559,0.00010066,2]
[423580658,1780249741000,1000.0,0.00030135,120]
[423580661,1780249802000,472.28,9.518e-05,2]
[423580660,1780249802000,472.28,9.466e-05,2]
[423580659,1780249802000,472.28,9.414e-05,2]
[423580665,1780249803000,472.28,9.727e-05,2]
[423580664,1780249803000,472.28,9.675e-05,2]
[423580663,1780249803000,472.28,9.622e-05,2]
[423580662,1780249803000,472.28,9.57e-05,2]
[423580667,1780249804000,472.28,9.831e-05,2]
[423580666,1780249804000,472.28,9.779e-05,2]
[423580669,1780249804000,472.28,9.935e-05,2]
[423580670,1780249804000,472.28,9.988e-05,2]
[423580668,1780249804000,472.28,9.883e-05,2]
[423580671,1780249807000,169.28,9.899e-05,2]
[423580699,1780249832000,-472.28,0.00010405,2]
[423580709,1780249832000,-32.58986701,0.00010826,2]
[423580706,1780249832000,-1623.04,0.00010821,2]
[423580708,1780249832000,-300.0,0.00010825,2]
[423580704,1780249832000,-1200.0,0.000108,3]
[423580705,1780249832000,-480.0,0.0001082,2]
[423580703,1780249832000,-900.0,0.000107,3]
[423580702,1780249832000,-600.0,0.000106,3]
[423580701,1780249832000,-1623.04,0.00010569,2]
[423580700,1780249832000,-300.0,0.000105,3]
[423580698,1780249832000,-472.28,0.00010353,2]
[423580691,1780249832000,-472.28,0.00010196,2]
[423580696,1780249832000,-270.45500135,0.00010318,2]
[423580694,1780249832000,-418.14499865,0.00010248,2]
[423580695,1780249832000,-472.28,0.00010301,2]
[423580692,1780249832000,-163.42,0.00010243,2]
[423580693,1780249832000,-54.13500135,0.00010248,2]
[423580710,1780249832000,-447.59021697,0.00010826,2]
[423580690,1780249832000,-220.0,0.0001017,2]
[423580689,1780249832000,-472.28,0.00010144,2]
[423580687,1780249832000,-52.2138556,0.00010092,2]
[423580688,1780249832000,-420.0661444,0.00010092,2]
[423580685,1780249832000,-472.28,0.0001004,2]
[423580686,1780249832000,-580.00614441,0.00010066,2]
[423580697,1780249832000,-1352.58499865,0.00010318,2]
[423580711,1780249832000,-500.0,0.00010826,2]
[423580707,1780249832000,-150.0,0.00010825,2]
[423580712,1780249832000,-500.0,0.00010826,2]
[423580713,1780249832000,-500.0,0.00010826,2]
[423580733,1780249832000,-500.0,0.00010826,2]
[423580737,1780249832000,-500.0,0.00010826,2]
[423580734,1780249832000,-180.0,0.00010826,2]
[423580735,1780249832000,-500.0,0.00010826,2]
[423580736,1780249832000,-458.12219061,0.00010826,2]
[423580738,1780249832000,-327.4938552,0.00010826,2]
[423580731,1780249832000,-350.0,0.00010826,2]
[423580732,1780249832000,-500.0,0.00010826,2]
[423580730,1780249832000,-500.0,0.00010826,2]
[423580729,1780249832000,-500.0,0.00010826,2]
[423580728,1780249832000,-500.0,0.00010826,2]
[423580726,1780249832000,-500.0,0.00010826,2]
[423580739,1780249832000,-500.0,0.00010826,2]
[423580723,1780249832000,-500.0,0.00010826,2]
[423580727,1780249832000,-500.0,0.00010826,2]
[423580714,1780249832000,-500.0,0.00010826,2]
[423580717,1780249832000,-500.0,0.00010826,2]
[423580716,1780249832000,-500.0,0.00010826,2]
[423580719,1780249832000,-500.0,0.00010826,2]
[423580715,1780249832000,-500.0,0.00010826,2]
[423580725,1780249832000,-500.0,0.00010826,2]
[423580724,1780249832000,-500.0,0.00010826,2]
[423580721,1780249832000,-500.0,0.00010826,2]
[423580720,1780249832000,-500.0,0.00010826,2]
[423580722,1780249832000,-500.0,0.00010826,2]
[423580718,1780249832000,-500.0,0.00010826,2]
[423580755,1780249833000,-500.0,0.00010826,2]
[423580754,1780249833000,-500.0,0.00010826,2]
[423580757,1780249833000,-500.0,0.00010826,2]
[423580756,1780249833000,-500.0,0.00010826,2]
[423580758,1780249833000,-500.0,0.00010826,2]
[423580762,1780249833000,-164.47623305,0.00010826,2]
[423580760,1780249833000,-500.0,0.00010826,2]
[423580763,1780249833000,-500.0,0.00010826,2]
[423580752,1780249833000,-500.0,0.00010826,2]
[423580759,1780249833000,-500.0,0.00010826,2]
[423580753,1780249833000,-500.0,0.00010826,2]
[423580744,1780249833000,-500.0,0.00010826,2]
[423580749,1780249833000,-500.0,0.00010826,2]
[423580746,1780249833000,-500.0,0.00010826,2]
[423580750,1780249833000,-500.0,0.00010826,2]
[423580747,1780249833000,-500.0,0.00010826,2]
[423580748,1780249833000,-500.0,0.00010826,2]
[423580745,1780249833000,-500.0,0.00010826,2]
[423580742,1780249833000,-500.0,0.00010826,2]
[423580743,1780249833000,-500.0,0.00010826,2]
[423580741,1780249833000,-500.0,0.00010826,2]
[423580740,1780249833000,-500.0,0.00010826,2]
[423580761,1780249833000,-500.0,0.00010826,2]
[423580751,1780249833000,-500.0,0.00010826,2]
[423580765,1780249833000,-61624.5756,0.00010827,2]
[423580773,1780249833000,-1500.0,0.000109,3]
[423580766,1780249833000,-6900.50343706,0.00010837,2]
[423580764,1780249833000,-500.0,0.00010826,2]
[423580789,1780249833000,-150.0,0.00010937,2]
[423580790,1780249833000,-164141.53531655,0.00010937,2]
[423580788,1780249833000,-602.67746107,0.00010936,2]
[423580785,1780249833000,-500.0,0.00010936,2]
[423580787,1780249833000,-500.0,0.00010936,2]
[423580784,1780249833000,-258.76605542,0.00010936,2]
[423580783,1780249833000,-488.87481848,0.00010936,2]
[423580781,1780249833000,-500.0,0.00010936,2]
[423580782,1780249833000,-500.0,0.00010936,2]
[423580780,1780249833000,-500.0,0.00010936,2]
[423580777,1780249833000,-151.0,0.00010934,2]
[423580786,1780249833000,-500.0,0.00010936,2]
[423580778,1780249833000,-151.0,0.00010934,2]
[423580779,1780249833000,-214.432623,0.00010936,2]
[423580768,1780249833000,-1423.4802,0.00010837,2]
[423580767,1780249833000,-381.20694373,0.00010837,2]
[423580769,1780249833000,-263.44388486,0.00010859,2]
[423580772,1780249833000,-1229.78214246,0.00010889,2]
[423580770,1780249833000,-689.16297718,0.00010859,2]
[423580775,1780249833000,-26517.0,0.00010904,2]
[423580774,1780249833000,-9879.42828873,0.000109,2]
[423580776,1780249833000,-151.0,0.00010934,2]
[423580791,1780249833000,-378.25337424,0.00010937,2]
[423580771,1780249833000,-2015.13,0.00010887,2]
[423580816,1780249838000,-2000.0,0.00011219,2]
[423580834,1780249838000,-150.0,0.00011392,2]
[423580818,1780249838000,-1109.81,0.00011261,2]
[423580820,1780249838000,-1109.81,0.00011321,2]
[423580830,1780249838000,-150.0,0.00011392,2]
[423580832,1780249838000,-150.0,0.00011392,2]
[423580823,1780249838000,-215.61611719,0.00011324,2]
[423580838,1780249838000,-1109.81,0.00011503,2]
[423580836,1780249838000,-1109.81,0.00011442,2]
[423580825,1780249838000,-1109.81,0.00011382,2]
[423580827,1780249838000,-151.29500077,0.00011392,2]
[423580840,1780249838000,-1109.81,0.00011563,2]
[423580842,1780249838000,-150.0,0.00011603,2]
[423580844,1780249838000,-150.0,0.00011603,2]
[423580811,1780249838000,-1109.81,0.0001114,2]
[423580822,1780249838000,-209.17060647,0.00011324,2]
[423580808,1780249838000,-33633.61707281,0.00011099,2]
[423580798,1780249838000,-2335480.21130921,0.00010937,2]
[423580807,1780249838000,-1109.81,0.0001108,2]
[423580792,1780249838000,-1243.97044349,0.00010927,2]
[423580793,1780249838000,-228.31828303,0.00010927,2]
[423580794,1780249838000,-439.34277417,0.00010927,2]
[423580795,1780249838000,-580.37950307,0.00010927,2]
[423580859,1780249838000,-150.0,0.00011814,2]
[423580797,1780249838000,-137.56644928,0.00010927,2]
[423580796,1780249838000,-315.0,0.00010927,2]
[423580799,1780249838000,-1500000.0,0.00010937,2]
[423580800,1780249838000,-1109.81,0.00010959,2]
[423580801,1780249838000,-510.78,0.00010989,2]
[423580802,1780249838000,-150.0,0.00010989,2]
[423580803,1780249838000,-1109.81,0.0001102,2]
[423580804,1780249838000,-250.0,0.0001103,2]
[423580806,1780249838000,-1623.04,0.00011073,2]
[423580805,1780249838000,-776.12834704,0.00011036,2]
[423580810,1780249838000,-24342.63284895,0.00011099,2]
[423580857,1780249838000,-150.0,0.00011814,2]
[423580813,1780249838000,-1109.81,0.00011201,2]
[423580847,1780249838000,-1109.81,0.00011623,2]
[423580894,1780249838000,-150.0,0.00012447,2]
[423580906,1780249838000,-150.0,0.00012658,2]
[423580908,1780249838000,-150.0,0.00012658,2]
[423580912,1780249838000,-150.0,0.00012725,2]
[423580898,1780249838000,-150.0,0.00012551,2]
[423580910,1780249838000,-153.77401671,0.00012658,2]
[423580900,1780249838000,-178.24,0.00012617,2]
[423580896,1780249838000,-2000.0,0.00012465,2]
[423580904,1780249838000,-150.0,0.00012638,2]
[423580916,1780249838000,-150.0,0.00012812,2]
[423580914,1780249838000,-33633.61707273,0.00012797,2]
[423580922,1780249838000,-150.0,0.00012986,2]
[423580920,1780249838000,-150.0,0.00012899,2]
[423580927,1780249838000,-150.0,0.00013161,2]
[423580925,1780249838000,-150.0,0.00013074,2]
[423580861,1780249838000,-1109.81,0.00011865,2]
[423580902,1780249838000,-748.710859,0.00012622,2]
[423580892,1780249838000,-150.0,0.00012447,2]
[423580918,1780249838000,-104136.54420011,0.00012837,2]
[423580888,1780249838000,-207.11,0.00012329,2]
[423580848,1780249838000,-1109.81,0.00011684,2]
[423580890,1780249838000,-150.0,0.00012341,2]
[423580854,1780249838000,-1109.81,0.00011805,2]
[423580852,1780249838000,-1109.81,0.00011744,2]
[423580863,1780249838000,-210.0,0.00011865,2]
[423580867,1780249838000,-1109.81,0.00011986,2]
[423580865,1780249838000,-1109.81,0.00011925,2]
[423580873,1780249838000,-150.0,0.00012025,2]
[423580851,1780249838000,-150.0,0.00011708,2]
[423580884,1780249838000,-150.0,0.00012236,2]
[423580869,1780249838000,-165.02,0.00012022,2]
[423580880,1780249838000,-616.14,0.00012144,2]
[423580878,1780249838000,-1109.81,0.00012046,2]
[423580876,1780249838000,-150.0,0.00012025,2]
[423580871,1780249838000,-150.0,0.00012025,2]
[423580886,1780249838000,-24342.63284894,0.00012314,2]
[423580882,1780249838000,-150.0,0.00012236,2]
[423580998,1780249839000,-1438.75,0.00013698,2]
[423581015,1780249839000,-500.0,0.00013698,2]
[423581017,1780249839000,-500.0,0.00013698,2]
[423581006,1780249839000,-1438.75,0.00013698,2]
[423580993,1780249839000,-1438.75,0.00013698,2]
[423581008,1780249839000,-1438.75,0.00013698,2]
[423581004,1780249839000,-1438.75,0.00013698,2]
[423581000,1780249839000,-1438.75,0.00013698,2]
[423581010,1780249839000,-1438.75,0.00013698,2]
[423581013,1780249839000,-484.96,0.00013698,2]
[423580996,1780249839000,-1438.75,0.00013698,2]
[423581002,1780249839000,-1438.75,0.00013698,2]
[423581021,1780249839000,-500.0,0.00013698,2]
[423581036,1780249839000,-500.0,0.00013698,2]
[423581028,1780249839000,-500.0,0.00013698,2]
[423581026,1780249839000,-500.0,0.00013698,2]
[423581032,1780249839000,-500.0,0.00013698,2]
[423581019,1780249839000,-500.0,0.00013698,2]
[423581030,1780249839000,-500.0,0.00013698,2]
[423581034,1780249839000,-500.0,0.00013698,2]
[423581040,1780249839000,-500.0,0.00013698,2]
[423581042,1780249839000,-500.0,0.00013698,2]
[423581038,1780249839000,-500.0,0.00013698,2]
[423581048,1780249839000,-500.0,0.00013698,2]
[423581056,1780249839000,-500.0,0.00013698,2]
[423580989,1780249839000,-1438.75,0.00013698,2]
[423581052,1780249839000,-500.0,0.00013698,2]
[423581023,1780249839000,-500.0,0.00013698,2]
[423580991,1780249839000,-1438.75,0.00013698,2]
[423580958,1780249839000,-500.0,0.00013698,2]
[423580975,1780249839000,-174.18899724,0.00013698,2]
[423581044,1780249839000,-500.0,0.00013698,2]
[423580931,1780249839000,-150.0,0.00013335,2]
[423580929,1780249839000,-150.0,0.00013248,2]
[423580937,1780249839000,-337.077418,0.00013426,2]
[423580935,1780249839000,-150.0,0.00013422,2]
[423580933,1780249839000,-163.0,0.000134,2]
[423580939,1780249839000,-616.14,0.00013493,2]
[423580941,1780249839000,-150.0,0.00013509,2]
[423580943,1780249839000,-150.0,0.00013597,2]
[423580945,1780249839000,-150.0,0.00013684,2]
[423580956,1780249839000,-500.0,0.00013698,2]
[423580960,1780249839000,-500.0,0.00013698,2]
[423580962,1780249839000,-500.0,0.00013698,2]
[423580947,1780249839000,-500.0,0.00013698,2]
[423580950,1780249839000,-500.0,0.00013698,2]
[423580954,1780249839000,-500.0,0.00013698,2]
[423580952,1780249839000,-500.0,0.00013698,2]
[423580966,1780249839000,-500.0,0.00013698,2]
[423580964,1780249839000,-500.0,0.00013698,2]
[423580973,1780249839000,-500.0,0.00013698,2]
[423580987,1780249839000,-1438.75,0.00013698,2]
[423580970,1780249839000,-500.0,0.00013698,2]
[423580981,1780249839000,-1438.75,0.00013698,2]
[423580983,1780249839000,-1438.75,0.00013698,2]
[423580985,1780249839000,-1438.75,0.00013698,2]
[423580968,1780249839000,-412.1,0.00013698,2]
[423580979,1780249839000,-1438.75,0.00013698,2]
[423580977,1780249839000,-1438.75,0.00013698,2]
[423581058,1780249839000,-500.0,0.00013698,2]
[423581107,1780249839000,-418.44368182,0.00013698,2]
[423581062,1780249839000,-173.03,0.00013698,2]
[423581121,1780249839000,-500.0,0.00013698,2]
[423581125,1780249839000,-500.0,0.00013698,2]
[423581127,1780249839000,-500.0,0.00013698,2]
[423581134,1780249839000,-500.0,0.00013698,2]
[423581130,1780249839000,-500.0,0.00013698,2]
[423581132,1780249839000,-500.0,0.00013698,2]
[423581138,1780249839000,-500.0,0.00013698,2]
[423581140,1780249839000,-500.0,0.00013698,2]
[423581136,1780249839000,-500.0,0.00013698,2]
[423581143,1780249839000,-500.0,0.00013698,2]
[423581145,1780249839000,-500.0,0.00013698,2]
[423581147,1780249839000,-500.0,0.00013698,2]
[423581149,1780249839000,-500.0,0.00013698,2]
[423581123,1780249839000,-500.0,0.00013698,2]
[423581159,1780249839000,-631.68,0.00013698,2]